bitfinex/quotes_ETHUSD_20250905
["timestamp","ask_amount","ask_price","bid_price","bid_amount"]
[1757035337021,0.1866,4326.3,4326.2,4.0102]
[1757035337176,4.45458705,4326.5,4326.2,4.0102]
[1757035338398,0.1891,4326.3,4326.2,0.1152]
[1757035338584,0.1891,4326.3,4326.2,4.0072]
[1757035339314,4.45458705,4326.5,4326.2,4.0072]
[1757035339810,0.1915,4326.3,4326.2,0.1152]
[1757035340021,2.50294395,4326.3,4326.2,4.0062]
[1757035340405,0.1915,4326.3,4326.2,4.0062]
[1757035340788,2.50294395,4326.3,4326.2,4.0062]
[1757035340989,2.50294395,4326.3,4325.7,2.594]
[1757035340990,2.31150705,4326.2,4325.7,1.704]
[1757035341219,2.31150705,4326.2,4326.0,0.1152]
[1757035341405,0.1938,4326.1,4326.0,0.1152]
[1757035341734,0.21692688,4326.1,4326.0,0.1152]
[1757035341934,2.31163697,4326.0,4325.7,1.8192]
[1757035342235,2.31163697,4326.0,4325.8,3.144]
[1757035342395,4.87918705,4326.1,4325.8,3.144]
[1757035342396,0.1961,4325.9,4325.8,3.144]
[1757035343133,0.1961,4325.9,4325.8,3.89]
[1757035343622,0.1961,4325.9,4325.8,4.10609785]
[1757035345040,6.7651388,4326.1,4325.8,4.10609785]
[1757035345246,6.7651388,4326.1,4325.9,0.21609785]
[1757035345431,4.45358705,4326.1,4326.0,0.21609785]
[1757035345625,4.65198705,4326.1,4326.0,0.21609785]
[1757035345808,6.96353786,4326.1,4326.0,0.21609785]
[1757035347140,0.1984,4326.1,4326.0,0.21612042]
[1757035347346,2.50995081,4326.1,4326.0,0.21612042]
[1757035347516,0.1984,4326.1,4326.0,0.21612042]
[1757035348027,2.50995081,4326.1,4326.0,0.21605182]
[1757035350145,0.1984,4326.1,4326.0,0.21605182]
[1757035350340,2.50995081,4326.1,4326.0,0.21605182]
[1757035350842,2.93105081,4326.1,4326.0,0.21605182]
[1757035351019,3.40165081,4326.1,4326.0,0.21605182]
[1757035352134,2.93105081,4326.1,4326.0,0.21605182]
[1757035352723,3.42477769,4326.1,4326.0,0.21605182]
[1757035352916,2.31171112,4325.8,4325.7,0.004]
[1757035353129,6.78842505,4325.8,4325.7,0.22005728]
[1757035353328,6.96589817,4325.8,4325.7,0.22005728]
[1757035353528,7.38479817,4325.8,4325.7,0.22005728]
[1757035354035,7.85539817,4325.8,4325.7,0.22005728]
[1757035354837,0.1152,4325.9,4325.7,0.51275728]
[1757035355046,0.1152,4325.9,4325.8,0.21605728]
[1757035355346,2.31160977,4326.0,4325.8,0.21605728]
[1757035355540,2.31160977,4326.0,4325.9,0.94015728]
[1757035355741,2.42675821,4326.1,4325.9,0.50875728]
[1757035356049,2.42675821,4326.1,4326.0,0.21605728]
[1757035356945,2.61335821,4326.1,4326.0,0.21605728]
[1757035357866,2.42675821,4326.1,4326.0,0.21605728]
[1757035358466,2.61335821,4326.1,4326.0,0.21605728]
[1757035359068,0.1152,4326.1,4326.0,0.51235728]
[1757035359361,0.001,4326.5,4326.0,5.42915728]
[1757035359646,0.001,4326.5,4326.4,0.1152]
[1757035359862,0.001,4326.5,4326.4,0.33125728]
[1757035360032,0.001,4326.5,4326.4,1.54115728]
[1757035361028,0.001,4326.5,4326.4,4.21925728]
[1757035361230,0.001,4326.5,4326.4,4.96785728]
[1757035361858,0.001,4326.5,4326.4,5.42915728]
[1757035365933,0.001,4326.5,4326.4,6.20322765]
[1757035366155,0.001,4326.5,4326.4,8.39941818]
[1757035366330,0.001,4326.5,4326.4,2.20002765]
[1757035366534,0.001,4326.5,4326.4,12.07893486]
[1757035367253,0.001,4326.5,4326.4,20.32452191]
[1757035368073,0.001,4326.5,4326.4,11.41734781]
[1757035368236,0.001,4326.5,4326.4,20.32452191]
[1757035369962,0.001,4326.5,4326.4,16.43652191]
[1757035370181,0.001,4326.5,4326.4,22.59242988]
[1757035370987,0.001,4326.5,4326.4,22.59142988]
[1757035372088,0.001,4326.5,4326.4,18.70325148]
[1757035372393,0.001,4326.5,4326.4,22.59025148]
[1757035374571,0.001,4326.5,4326.4,18.70325148]
[1757035374772,0.001,4326.5,4326.4,22.59025148]
[1757035375280,0.025,4327.8,4327.7,2.31069621]
[1757035375487,0.025,4327.8,4327.7,6.26702651]
[1757035375683,0.1733,4327.8,4327.7,1.91787888]
[1757035375992,1.1056,4327.8,4327.7,5.59]
[1757035376167,1.1056,4327.8,4327.7,5.7052]
[1757035376361,1.1056,4327.8,4327.7,1.8182]
[1757035376567,3.41624282,4327.8,4327.7,5.59]
[1757035376866,3.41624282,4327.8,4326.3,7.45358705]
[1757035376867,2.31095112,4327.3,4327.0,1.703]
[1757035377063,0.3075,4327.1,4327.0,1.703]
[1757035377268,0.025,4327.8,4327.2,0.1152]
[1757035377269,2.79725957,4327.8,4327.2,0.1152]
[1757035377479,2.79725957,4327.8,4327.3,4.0022]
[1757035377480,0.9356,4327.7,4327.3,4.0022]
[1757035377692,0.9356,4327.7,4327.4,3.89]
[1757035377988,0.9356,4327.6,4327.4,3.89]
[1757035378187,0.619,4327.5,4327.4,3.89]
[1757035378393,0.025,4327.8,4327.6,2.31074731]
[1757035378594,0.025,4327.8,4327.7,6.41420686]
[1757035378804,0.025,4327.8,4327.7,0.21451065]
[1757035379108,0.1733,4327.8,4327.7,4.10951065]
[1757035379304,0.1733,4327.8,4327.7,0.21451065]
[1757035379463,0.1733,4327.8,4327.7,4.22471065]
[1757035380348,0.025,4327.8,4327.7,4.22471065]
[1757035380483,0.025,4327.8,4327.7,7.52530443]
[1757035380683,0.025,4327.8,4327.7,7.98660443]
[1757035380912,0.025,4327.8,4327.7,12.89249148]
[1757035381096,0.025,4327.8,4327.7,12.77729148]
[1757035381294,0.025,4327.8,4327.7,12.89249148]
[1757035381688,0.025,4327.8,4327.7,8.43890443]
[1757035381927,0.025,4327.8,4327.7,12.89249148]
[1757035382391,0.025,4327.8,4327.7,8.08389148]
[1757035382587,0.025,4327.8,4327.7,7.52530443]
[1757035382818,0.025,4327.8,4327.7,8.43890443]
[1757035383019,0.025,4327.8,4327.7,15.89249148]
[1757035383391,0.025,4327.8,4327.7,16.68449148]
[1757035383593,0.025,4327.8,4327.7,17.46322053]
[1757035385958,0.025,4327.8,4327.7,17.93722053]
[1757035386424,0.025,4327.8,4327.7,17.93706723]
[1757035387411,0.025,4327.8,4327.7,14.04206723]
[1757035387638,0.025,4327.8,4327.7,17.93906723]
[1757035387842,0.025,4327.8,4327.7,12.79776723]
[1757035388046,0.025,4327.8,4327.7,10.52515113]
[1757035388241,0.025,4327.8,4327.7,10.97757919]
[1757035388448,0.025,4327.8,4327.7,11.43887919]
[1757035388724,0.025,4327.8,4327.7,11.43987919]
[1757035391328,0.025,4327.8,4327.7,12.23187919]
[1757035391842,0.025,4327.8,4327.7,12.71617919]
[1757035394344,0.025,4327.8,4327.7,12.71417919]
[1757035394514,0.025,4327.8,4327.7,12.71217919]
[1757035394856,0.025,4327.8,4327.7,12.25987919]
[1757035395351,0.025,4327.8,4327.7,8.36787919]
[1757035395515,0.025,4327.8,4327.7,12.69097919]
[1757035396252,0.025,4327.8,4327.7,11.79957919]
[1757035396430,0.025,4327.8,4327.7,10.53987919]
[1757035396627,0.025,4327.8,4327.7,6.64687919]
[1757035396850,0.2196,4327.8,4327.7,6.33397919]
[1757035397058,0.2196,4327.8,4327.7,10.22697919]
[1757035397344,0.2196,4327.8,4327.7,10.22764545]
[1757035398143,0.6444,4327.8,4327.7,10.22664545]
[1757035398332,0.6444,4327.8,4327.7,9.53304788]
[1757035399128,0.2196,4327.8,4327.7,5.64104788]
[1757035399448,0.6444,4327.8,4327.7,9.53404788]
[1757035399754,0.7039,4327.8,4327.7,0.33035167]
[1757035400048,1.1287,4327.8,4327.7,4.89135167]
[1757035400541,1.1287,4327.8,4327.7,5.7112]
[1757035401548,1.1287,4327.8,4327.7,1.703]
[1757035401549,3.43934282,4327.8,4327.7,1.703]
[1757035401748,3.43934282,4327.8,4327.7,5.595]
[1757035401947,1.1287,4327.8,4327.7,5.595]
[1757035402122,3.43934282,4327.8,4327.7,5.595]
[1757035402323,3.43934282,4327.8,4327.7,5.596]
[1757035402758,3.43934282,4327.8,4327.7,5.595]
[1757035402921,2.31078442,4327.6,4327.3,0.1152]
[1757035403120,0.02312688,4327.6,4327.4,3.893]
[1757035403447,1.1038,4327.5,4327.4,3.893]
[1757035404564,1.1038,4327.5,4327.3,0.1152]
[1757035404565,2.3108564,4327.4,4327.3,0.1152]
[1757035404771,2.31101661,4327.1,4327.0,1.703]
[1757035405051,3.53001661,4327.1,4327.0,5.598]
[1757035406180,1.219,4327.1,4326.5,0.1192]
[1757035406384,2.31118197,4326.8,4326.6,3.894]
[1757035406584,0.2014,4326.7,4326.6,3.894]
[1757035406910,1.1038,4326.7,4326.5,0.1192]
[1757035407056,0.4843,4326.6,4326.5,0.1192]
[1757035407256,0.9024,4326.6,4326.5,3.898]
[1757035407489,1.106,4326.6,4326.5,3.898]
[1757035409495,1.106,4326.6,4326.5,3.898]
[1757035409694,0.6217,4326.6,4326.5,3.898]
[1757035410918,0.4843,4327.6,4326.5,10.0152361]
[1757035411068,2.31075242,4327.6,4326.6,2.3112725]
[1757035411432,2.31075242,4327.6,4326.7,3.901]
[1757035411902,2.74030574,4327.5,4326.7,3.901]
[1757035412078,0.4295,4327.5,4326.7,6.21222828]
[1757035412671,2.74031227,4327.5,4326.8,3.9]
[1757035413005,0.1923,4326.9,4326.8,3.9]
[1757035413298,0.4295,4327.5,4326.8,4.2129]
[1757035414200,2.74030579,4327.5,4326.8,4.2129]
[1757035415183,2.31080579,4327.5,4326.8,4.2129]
[1757035415905,3.22453489,4327.7,4326.8,4.2129]
[1757035416232,0.1923,4326.9,4326.5,0.4784]
[1757035416383,0.1923,4326.9,4326.6,3.898]
[1757035417000,0.1923,4326.9,4326.5,0.004]
[1757035417313,0.1923,4326.9,4326.6,3.898]
[1757035418818,0.4272,4326.8,4326.7,3.898]
[1757035419026,2.31124806,4326.7,4326.5,0.004]
[1757035419220,2.31124806,4326.7,4326.6,3.897]
[1757035419520,0.6217,4326.7,4326.6,3.897]
[1757035419724,0.026,4327.8,4327.6,2.31072573]
[1757035419896,0.026,4327.8,4327.7,9.13299621]
[1757035420498,0.026,4327.8,4327.7,9.82760868]
[1757035420698,0.026,4327.8,4327.7,11.56467933]
[1757035420900,0.026,4327.8,4327.7,11.67987933]
[1757035421718,0.026,4327.8,4327.7,7.78287933]
[1757035421904,0.026,4327.8,4327.7,9.97780868]
[1757035422612,0.026,4327.8,4327.7,15.21012478]
[1757035423120,0.026,4327.8,4327.7,12.97780868]
[1757035423300,0.025,4328.8,4328.7,2.3101624]
[1757035423500,0.025,4328.8,4328.7,7.9441624]
[1757035423719,0.025,4328.8,4328.7,10.07607864]
[1757035425311,0.025,4328.8,4328.7,10.19127864]
[1757035425799,0.025,4328.8,4328.7,6.26027864]
[1757035425999,0.025,4328.8,4328.7,10.19227864]
[1757035426455,0.025,4328.8,4328.7,10.19127864]
[1757035427704,0.025,4328.8,4328.7,6.26027864]
[1757035427900,0.025,4328.8,4328.7,10.19027864]
[1757035428304,0.025,4328.8,4328.7,10.18927864]
[1757035429733,0.025,4328.8,4328.7,9.14807864]
[1757035429911,0.025,4328.8,4328.7,8.85077864]
[1757035430110,0.2185,4328.8,4328.7,1.8182]
[1757035430333,0.2185,4328.8,4328.7,5.7462]
[1757035430626,0.025,4328.8,4328.7,5.7462]
[1757035430825,0.025,4328.8,4328.7,1.8182]
[1757035431031,0.025,4328.8,4328.7,8.0553624]
[1757035431231,0.025,4328.8,4328.7,8.3526624]
[1757035431533,0.025,4328.8,4328.7,4.4256624]
[1757035431733,0.025,4328.8,4328.7,6.0425]
[1757035432042,0.025,4328.8,4328.7,8.3526624]
[1757035432344,0.025,4328.8,4328.7,6.0415]
[1757035432852,0.2185,4328.8,4328.7,5.7432]
[1757035433432,0.025,4328.8,4328.7,6.15600491]
[1757035433631,0.025,4328.8,4328.7,10.08000491]
[1757035433831,0.026,4328.8,4328.7,10.08000491]
[1757035434131,0.026,4328.8,4328.7,5.23100491]
[1757035434454,0.026,4328.8,4328.7,8.3526624]
[1757035434962,0.026,4328.8,4328.7,8.3596624]
[1757035435967,0.026,4328.8,4328.7,1.8182]
[1757035435968,0.2195,4328.8,4328.7,1.8182]
[1757035436132,0.2195,4328.8,4328.7,5.7522]
[1757035436328,0.2195,4328.8,4328.7,8.0623624]
[1757035436660,0.2195,4328.8,4328.7,8.0613624]
[1757035437563,0.026,4328.8,4328.7,8.0613624]
[1757035438466,0.026,4328.8,4328.7,4.1283624]
[1757035438648,0.026,4328.8,4328.7,8.0603624]
[1757035439567,0.026,4328.8,4328.7,5.7502]
[1757035439734,0.026,4328.8,4328.7,5.7482]
[1757035439935,0.026,4328.8,4328.7,8.0583624]
[1757035440359,0.026,4328.8,4328.7,4.1283624]
[1757035440536,0.026,4328.8,4328.7,8.0573624]
[1757035441236,0.026,4328.8,4328.1,0.69449508]
[1757035441237,1.1434,4328.8,4327.4,0.4515]
[1757035441567,3.45351356,4328.8,4328.3,0.1152]
[1757035441767,3.23169813,4328.7,4328.4,2.97]
[1757035442137,0.1981,4328.5,4328.4,2.97]
[1757035442345,0.026,4328.8,4328.4,3.929]
[1757035443781,0.026,4328.8,4328.7,0.2973]
[1757035443951,0.026,4328.8,4328.7,3.928]
[1757035444150,0.3238,4328.8,4328.7,3.928]
[1757035447983,0.026,4328.8,4328.7,3.928]
[1757035448362,0.3238,4328.8,4328.7,3.928]
[1757035449281,0.3238,4328.8,4328.6,0.1152]
[1757035449465,0.6465,4328.8,4328.7,3.924]
[1757035449801,0.3238,4328.8,4328.7,3.923]
[1757035451982,0.3238,4328.8,4328.7,4.0382]
[1757035452752,0.026,4328.8,4328.7,9.5612824]
[1757035452996,0.026,4328.8,4328.7,7.25112]
[1757035453194,0.026,4328.8,4328.7,9.5612824]
[1757035453789,0.026,4328.8,4328.7,6.33042]
[1757035453987,0.026,4328.8,4328.7,5.629]
[1757035455269,0.026,4328.8,4328.7,5.628]
[1757035457176,0.026,4328.8,4328.7,5.9296]
[1757035457401,0.026,4328.8,4328.7,7.9381624]
[1757035457721,0.026,4328.8,4328.7,2.0036]
[1757035457903,0.026,4328.8,4328.7,8.7147624]
[1757035458417,0.026,4328.8,4328.7,8.2377624]
[1757035459100,0.026,4328.8,4328.7,5.9266]
[1757035459304,0.026,4328.8,4328.7,5.625]
[1757035459877,0.026,4328.8,4328.7,5.9266]
[1757035460712,0.026,4328.8,4328.7,8.2367624]
[1757035461281,0.026,4328.8,4328.7,5.9266]
[1757035461683,0.026,4328.8,4328.7,8.2367624]
[1757035461876,0.026,4328.8,4328.7,8.2347624]
[1757035462618,0.026,4328.8,4328.7,8.6794624]
[1757035462801,0.026,4328.8,4328.7,9.2706624]
[1757035463821,0.026,4328.8,4328.7,6.9605]
[1757035463976,0.026,4328.8,4328.7,5.7382]
[1757035464416,0.026,4328.8,4328.7,5.7362]
[1757035465324,0.1932,4328.8,4328.7,5.7352]
[1757035465620,0.026,4328.8,4328.7,5.7352]
[1757035465824,0.1961,4328.8,4328.7,1.8172]
[1757035466006,0.6453,4328.8,4328.7,5.7352]
[1757035466324,0.1961,4328.8,4328.7,5.7352]
[1757035466724,0.1961,4328.8,4328.7,1.8172]
[1757035466885,0.1961,4328.8,4328.7,5.7342]
[1757035467387,0.026,4328.8,4328.7,5.7342]
[1757035469363,3.44630903,4328.8,4328.7,1.702]
[1757035469508,2.3101624,4328.7,4328.6,3.916]
[1757035469851,2.9294624,4328.7,4328.6,3.916]
[1757035470221,2.4802624,4328.7,4328.6,3.916]
[1757035472452,2.9294624,4328.7,4328.6,3.916]
[1757035473418,2.4802624,4328.7,4328.6,3.916]
[1757035481996,2.4802624,4328.7,4328.2,0.4453]
[1757035482211,2.4802624,4328.7,4328.3,3.907]
[1757035482860,0.1412,4328.8,4328.6,0.2903]
[1757035483186,0.026,4328.8,4328.7,4.8335]
[1757035483486,0.026,4328.8,4328.7,5.1238]
[1757035484188,0.026,4328.8,4328.7,4.1963]
[1757035484888,0.026,4328.8,4328.7,3.906]
[1757035485095,0.026,4328.8,4328.5,0.5605]
[1757035485265,0.026,4328.8,4328.6,3.906]
[1757035485986,0.026,4328.8,4328.5,0.1152]
[1757035486179,0.026,4328.8,4328.7,3.906]
[1757035486381,0.2083,4328.8,4328.5,0.1152]
[1757035486614,0.2083,4328.8,4328.1,0.4453]
[1757035486615,2.95540903,4328.8,4328.7,3.905]
[1757035486893,2.31022301,4328.6,4328.3,0.1152]
[1757035487200,2.31022301,4328.6,4328.4,3.905]
[1757035487495,0.1823,4328.5,4328.3,0.1152]
[1757035487675,2.31020774,4328.7,4328.4,3.905]
[1757035487860,0.026,4328.8,4328.4,3.905]
[1757035488067,2.3101624,4328.7,4328.4,3.905]
[1757035488763,2.3101624,4328.7,4328.4,4.8325]
[1757035489193,0.026,4328.8,4328.4,4.8325]
[1757035489395,2.33613757,4328.8,4328.4,4.8325]
[1757035489594,2.31024781,4328.6,4328.5,3.904]
[1757035489797,2.31016896,4328.7,4328.5,3.904]
[1757035490710,0.026,4328.8,4328.6,1.333]
[1757035490902,0.026,4328.8,4328.7,4.0131624]
[1757035491202,0.026,4328.8,4328.7,4.9406624]
[1757035491386,0.026,4328.8,4328.7,5.2309624]
[1757035491565,0.026,4328.8,4328.7,6.8762898]
[1757035492104,0.026,4328.8,4328.7,11.32269112]
[1757035495777,0.026,4328.8,4328.7,9.01252872]
[1757035496104,0.026,4328.8,4328.7,12.91852872]
[1757035496304,0.026,4328.8,4328.7,15.22869112]
[1757035496801,0.026,4328.8,4328.7,19.79029244]
[1757035497100,0.026,4328.8,4328.7,15.34389112]
[1757035497401,0.026,4328.8,4328.7,15.45909112]
[1757035499211,0.026,4328.8,4328.7,10.5663898]
[1757035499382,0.026,4328.8,4328.7,7.3685274]
[1757035499589,0.026,4328.8,4328.7,9.6786898]
[1757035499908,0.026,4328.8,4328.7,9.9689898]
[1757035500106,0.026,4328.8,4328.7,6.0639898]
[1757035500306,0.2083,4328.8,4328.7,3.4635274]
[1757035500477,0.2083,4328.8,4328.7,5.7232]
[1757035501111,0.026,4328.8,4328.7,8.0333624]
[1757035501410,0.026,4328.8,4328.7,8.3236624]
[1757035502409,0.026,4328.8,4328.7,9.2511624]
[1757035502709,0.026,4328.8,4328.7,10.85194477]
[1757035503407,0.026,4328.8,4328.7,10.73674477]
[1757035503613,0.026,4328.8,4328.7,10.85194477]
[1757035504117,0.026,4328.8,4328.7,19.09034609]
[1757035504910,0.026,4328.8,4328.7,14.64394477]
[1757035505332,0.026,4328.8,4328.7,19.09034609]
[1757035505543,0.026,4328.8,4328.7,19.87295513]
[1757035506541,0.4396,4330.3,4328.9,3.0]
[1757035506842,0.4396,4330.3,4328.7,9.86579273]
[1757035506843,0.4396,4330.3,4329.7,0.1152]
[1757035507137,0.4396,4330.3,4329.7,1.8172]
[1757035507334,0.4396,4330.3,4329.7,5.7232]
[1757035507706,0.4396,4330.3,4329.7,6.0135]
[1757035507908,0.4396,4330.3,4329.7,6.89034817]
[1757035508338,0.4396,4330.3,4329.7,9.19997701]
[1757035508709,0.4396,4330.7,4329.7,10.12747701]
[1757035508909,2.30914945,4330.6,4329.7,10.12747701]
[1757035509150,2.3092065,4330.5,4329.7,7.81784817]
[1757035509408,2.30915374,4330.6,4329.7,10.14877701]
[1757035509726,0.4396,4330.7,4329.7,10.14877701]
[1757035510242,2.30920625,4330.5,4329.7,7.83914817]
[1757035510441,0.4933,4330.8,4329.7,10.14877701]
[1757035510442,3.26934334,4330.8,4329.7,10.14877701]
[1757035510959,0.9603,4330.8,4329.7,10.14877701]
[1757035511257,2.80104367,4330.8,4329.7,10.14877701]
[1757035511611,0.025,4330.8,4329.7,10.14877701]
[1757035512146,2.33405793,4330.8,4329.7,10.14877701]
[1757035512461,0.025,4330.8,4329.7,10.14877701]
[1757035513420,0.467,4330.7,4329.7,10.14877701]
[1757035513941,0.025,4330.8,4329.7,10.14877701]
[1757035514147,0.492,4330.8,4329.7,10.14877701]
[1757035514950,0.025,4330.8,4329.7,10.14877701]
[1757035515250,0.467,4330.5,4329.7,6.24277701]
[1757035515447,0.467,4330.5,4329.7,9.19497701]
[1757035515620,0.467,4330.5,4329.7,10.14007701]
[1757035517249,0.467,4330.5,4329.7,5.00367701]
[1757035517452,0.2052,4329.8,4329.7,6.59504817]
[1757035517648,1.15,4329.8,4329.7,1.8172]
[1757035517849,0.2052,4329.8,4329.7,5.7172]
[1757035518063,0.05,4329.8,4329.7,8.02882884]
[1757035518359,0.05,4329.8,4329.7,14.5016392]
[1757035520561,0.05,4329.8,4329.7,14.5006392]
[1757035520749,0.05,4329.8,4329.7,16.23087421]
[1757035522073,0.05,4329.8,4329.7,15.76427421]
[1757035522236,0.2052,4329.8,4329.7,9.75806385]
[1757035522569,0.05,4329.8,4329.7,9.75706385]
[1757035522732,0.05,4329.8,4329.7,10.05576385]
[1757035522929,0.05,4329.8,4329.7,7.10086385]
[1757035523124,0.05,4329.8,4329.7,9.27062884]
[1757035523560,0.051,4329.8,4329.7,9.27062884]
[1757035523959,0.051,4329.8,4329.7,14.4996392]
[1757035525162,0.2062,4329.8,4329.7,1.8172]
[1757035525362,1.151,4329.8,4329.7,5.7152]
[1757035525962,0.051,4329.8,4329.7,9.12602681]
[1757035526557,0.6701,4329.8,4329.7,6.51769797]
[1757035527334,1.151,4329.8,4329.7,1.8172]
[1757035527535,1.151,4329.8,4329.7,5.601]
[1757035528063,3.4605755,4329.8,4329.7,5.601]
[1757035528234,3.4605755,4329.8,4329.7,5.602]
[1757035529445,3.4605755,4329.8,4329.7,1.702]
[1757035529658,3.4605755,4329.8,4329.7,5.602]
[1757035531686,3.4605755,4329.8,4329.7,1.702]
[1757035531878,3.4605755,4329.8,4329.7,5.6]
[1757035532078,2.30978888,4329.4,4329.3,0.1152]
[1757035532260,2.30973021,4329.6,4329.3,4.0132]
[1757035532575,0.1583,4329.4,4329.3,4.0132]
[1757035532894,1.1001,4329.4,4329.3,4.0132]
[1757035533384,0.1583,4329.4,4329.3,4.0132]
[1757035536352,0.1583,4329.4,4329.3,0.1152]
[1757035536662,0.6192,4329.4,4329.3,4.0102]
[1757035538781,3.40338888,4329.4,4329.3,0.1152]
[1757035538985,3.40338888,4329.4,4329.3,3.894]
[1757035539298,2.92898888,4329.4,4329.3,3.894]
[1757035540859,2.92898888,4329.4,4329.1,3.894]
[1757035541059,2.30984269,4329.3,4329.1,3.894]
[1757035541358,0.1613,4329.2,4329.1,3.894]
[1757035542357,2.30994895,4329.1,4329.0,0.1152]
[1757035542558,1.2103,4329.1,4328.8,3.898]
[1757035542764,3.04586881,4329.1,4328.8,3.898]
[1757035542966,2.31001209,4329.0,4328.8,3.898]
[1757035543383,2.62015567,4328.9,4328.8,3.898]
[1757035543980,0.3101,4328.9,4328.8,3.898]
[1757035544287,2.93075567,4328.9,4328.8,0.004]
[1757035545181,2.62015567,4328.9,4328.8,0.004]
[1757035545891,3.40515567,4328.9,4328.8,0.004]
[1757035546199,3.52035567,4328.9,4328.8,0.004]
[1757035546485,3.04595567,4328.9,4328.8,0.004]
[1757035546669,2.73535567,4328.9,4328.8,0.004]
[1757035548795,0.1152,4329.3,4328.8,1.2434]
[1757035548965,2.30989649,4329.2,4328.8,0.7833]
[1757035549165,0.1152,4329.5,4328.8,0.296]
[1757035549369,2.30991649,4329.2,4328.8,0.296]
[1757035551296,2.30995521,4329.1,4328.8,0.296]
[1757035551496,2.30989285,4329.3,4328.8,0.296]
[1757035551794,2.30992817,4329.2,4328.8,0.296]
[1757035551996,2.3098493,4329.3,4328.8,0.296]
[1757035552367,2.30990188,4329.2,4328.8,0.296]
[1757035552594,2.42497895,4329.5,4328.8,0.296]
[1757035552795,2.30991723,4329.2,4328.8,0.296]
[1757035553592,2.30991445,4329.2,4328.8,0.296]
[1757035553796,2.30984865,4329.3,4328.9,0.4601]
[1757035554092,2.30991249,4329.2,4328.8,0.004]
[1757035554800,2.3099491,4329.1,4328.8,0.004]
[1757035554987,2.30990297,4329.2,4328.8,0.004]
[1757035557807,2.30984966,4329.3,4328.8,0.9514]
[1757035558106,0.1152,4329.5,4328.8,0.004]
[1757035558272,0.4733,4329.4,4328.8,0.004]
[1757035558770,2.3099396,4329.2,4328.8,3.9]
[1757035558970,0.4733,4329.4,4328.8,3.9]
[1757035559471,2.89828314,4329.5,4328.8,3.9]
[1757035559788,0.149,4328.9,4328.8,3.9]
[1757035560381,2.30995155,4329.1,4328.8,3.9]
[1757035560704,2.30989559,4329.2,4328.8,3.9]
[1757035561083,2.30995047,4329.1,4328.8,3.9]
[1757035562991,2.30994729,4329.2,4328.8,3.9]
[1757035563187,0.1162,4329.5,4328.8,3.9]
[1757035563411,2.30993999,4329.2,4328.8,3.9]
[1757035563610,2.30993999,4329.2,4329.1,0.292]
[1757035563794,2.30993999,4329.2,4329.1,0.7521]
[1757035563795,2.30989559,4329.2,4329.1,0.7521]
[1757035563999,2.30989559,4329.2,4329.1,0.292]
[1757035564218,2.30989559,4329.2,4328.9,0.4873]
[1757035564823,2.30984569,4329.3,4328.9,0.4873]
[1757035565120,2.30989767,4329.2,4328.8,3.9]
[1757035565325,2.30989767,4329.2,4328.8,4.3601]
[1757035565492,2.30989767,4329.2,4328.8,4.8474]
[1757035566002,2.30996096,4329.1,4328.8,4.8474]
[1757035568233,0.149,4328.9,4328.8,3.9]
[1757035569224,0.149,4328.9,4328.8,0.004]
[1757035569430,2.45905567,4328.9,4328.8,3.899]
[1757035569623,0.149,4328.9,4328.8,3.899]
[1757035570499,0.1631,4328.9,4328.8,3.899]
[1757035571131,2.30995759,4329.1,4328.8,3.899]
[1757035571514,0.1631,4328.9,4328.8,0.004]
[1757035571827,2.30991315,4329.2,4328.9,0.4542]
[1757035572023,2.30991315,4329.2,4328.9,0.9214]
[1757035572927,2.30991315,4329.2,4328.9,0.4542]
[1757035573132,2.30991315,4329.2,4329.0,0.4672]
[1757035573328,0.1152,4329.3,4329.1,5.65337612]
[1757035573535,0.001,4329.5,4329.2,4.8164]
[1757035573729,0.001,4329.5,4329.4,0.1152]
[1757035573927,0.001,4329.5,4329.4,0.4007]
[1757035574329,0.001,4329.5,4329.4,1.3221]
[1757035575638,0.001,4329.5,4329.4,0.4007]
[1757035575843,0.001,4329.5,4329.4,4.0102]
[1757035576137,0.1641,4329.5,4329.4,4.0102]
[1757035576522,2.92993553,4329.5,4329.4,3.895]
[1757035576836,0.001,4329.5,4329.4,3.895]
[1757035577716,0.001,4329.5,4329.4,5.1019]
[1757035579640,0.001,4329.5,4329.4,3.895]
[1757035579941,0.1641,4329.5,4329.4,3.895]
[1757035582742,0.001,4329.5,4329.4,4.1805]
[1757035582917,0.001,4329.5,4329.4,4.6477]
[1757035584942,0.001,4329.5,4329.4,5.1019]
[1757035585558,0.001,4329.5,4329.4,6.02489879]
[1757035585749,0.001,4329.5,4329.4,8.33468767]
[1757035586244,0.001,4329.5,4329.4,10.78988767]
[1757035590146,0.001,4329.5,4329.4,10.32268767]
[1757035590314,0.001,4329.5,4329.4,10.78988767]
[1757035591421,0.001,4329.5,4329.4,6.89488767]
[1757035591618,0.001,4329.5,4329.4,10.32168767]
[1757035591816,0.001,4329.5,4329.4,10.78888767]
[1757035593112,0.001,4329.5,4329.4,9.58198767]
[1757035594458,0.001,4329.5,4329.4,5.68798767]
[1757035594861,0.001,4329.5,4329.4,9.58198767]
[1757035595365,0.001,4329.5,4329.4,9.86748767]
[1757035595612,0.001,4329.5,4329.4,0.1152]
[1757035595613,0.288,4329.5,4329.4,0.1152]
[1757035595726,0.001,4329.5,4329.4,3.894]
[1757035596924,0.1641,4329.5,4329.4,3.894]
[1757035597126,0.001,4329.5,4329.4,3.894]